bitfinex/quotes_SOLUSD_20251120
["timestamp","ask_amount","ask_price","bid_price","bid_amount"]
[1763623431622,9.31398517,142.98,142.97,0.1]
[1763623432430,8.65398517,142.98,142.97,0.1]
[1763623432635,1.66,142.98,142.97,0.8]
[1763623433313,1.66,142.98,142.97,0.1]
[1763623433514,1.66,142.98,142.97,0.8]
[1763623433714,1.66,142.98,142.97,0.1]
[1763623434410,1.66,142.98,142.97,0.8]
[1763623435735,1.66,142.98,142.97,0.1]
[1763623436234,1.66,142.98,142.97,0.8]
[1763623437030,6.99202908,143.02,142.97,10.42879013]
[1763623437229,1.66,143.01,142.98,2.63431577]
[1763623437426,1.66,143.01,142.98,3.33431577]
[1763623437629,1.66,143.01,142.99,0.7]
[1763623438012,0.66,143.0,142.97,0.1]
[1763623438206,3.29431577,143.0,142.97,0.1]
[1763623438435,6.99349604,142.99,142.97,0.1]
[1763623438615,1.66,142.98,142.97,0.1]
[1763623438815,1.66,142.98,142.97,0.8]
[1763623440212,6.99214875,143.02,142.97,10.42879013]
[1763623440413,1.66,143.01,142.98,2.63431577]
[1763623440727,1.66,143.01,142.98,3.33431577]
[1763623440934,1.66,143.01,142.99,0.7]
[1763623442417,1.66,143.01,142.99,3.33431577]
[1763623442618,8.65256966,143.01,142.99,0.7]
[1763623442922,9.31256966,143.01,142.97,10.42879013]
[1763623443235,9.31256966,143.01,142.98,2.63431577]
[1763623444141,0.66,143.0,142.97,0.1]
[1763623444518,7.65335378,143.0,142.97,0.1]
[1763623445136,0.66,142.99,142.97,0.1]
[1763623445327,1.66,142.98,142.97,0.1]
[1763623451847,9.31398517,142.98,142.97,0.1]
[1763623452850,11.94830094,142.98,142.97,0.1]
[1763623453446,9.31398517,142.98,142.97,0.1]
[1763623453628,11.94830094,142.98,142.97,0.1]
[1763623454251,9.31398517,142.98,142.97,0.1]
[1763623456125,8.65398517,142.98,142.97,0.1]
[1763623456653,9.31398517,142.98,142.97,0.1]
[1763623456837,11.94830094,142.98,142.97,0.1]
[1763623459057,21.73712863,142.98,142.97,0.1]
[1763623461147,19.10281286,142.98,142.97,0.1]
[1763623461353,21.73712863,142.98,142.97,0.1]
[1763623466877,21.73712863,142.98,142.97,1e-08]
[1763623467087,27.90978769,142.95,142.94,0.1]
[1763623467250,32.20410346,142.95,142.94,0.1]
[1763623467449,32.91410346,142.95,142.94,0.1]
[1763623468461,39.90955641,142.95,142.94,0.1]
[1763623472771,6.99505136,142.96,142.94,3.40431577]
[1763623472952,1.66,142.95,142.94,0.1]
[1763623473470,1.66,142.95,142.94,0.77]
[1763623474476,8.65545295,142.95,142.94,0.1]
[1763623475465,11.28976872,142.95,142.94,0.1]
[1763623475770,21.74859641,142.95,142.94,0.1]
[1763623476142,21.07859641,142.95,142.94,0.1]
[1763623476867,6.99545295,142.95,142.94,0.1]
[1763623477053,8.65545295,142.95,142.94,0.1]
[1763623477253,8.65545295,142.95,142.94,0.77]
[1763623477469,8.65545295,142.95,142.94,0.1]
[1763623478260,11.28976872,142.95,142.94,0.1]
[1763623478867,8.65545295,142.95,142.94,0.77]
[1763623479871,8.65545295,142.95,142.94,0.1]
[1763623480272,8.65545295,142.95,142.94,0.77]
[1763623483469,1.66,142.95,142.94,0.77]
[1763623484076,8.65545295,142.95,142.94,0.77]
[1763623484650,1.66,142.95,142.94,0.77]
[1763623484845,8.65545295,142.95,142.94,0.77]
[1763623485760,11.28976872,142.95,142.94,0.1]
[1763623488357,11.28976872,142.95,142.94,0.77]
[1763623488557,11.28976872,142.95,142.94,0.1]
[1763623490187,11.28976872,142.95,142.94,0.82]
[1763623490369,8.65545295,142.95,142.94,0.82]
[1763623490970,8.65545295,142.95,142.94,0.1]
[1763623492075,8.65545295,142.95,142.94,0.82]
[1763623492076,1.66,142.95,142.94,0.82]
[1763623492279,1.66,142.96,142.94,4.93844695]
[1763623492669,1.66,142.96,142.95,0.72]
[1763623494070,1.66,142.96,142.95,11.8338999]
[1763623494270,1.66,142.96,142.95,7.71545295]
[1763623494474,1.66,142.96,142.95,4.83844695]
[1763623494675,1.66,142.96,142.95,11.8338999]
[1763623497192,1.66,142.96,142.95,4.83844695]
[1763623497388,1.66,142.96,142.95,11.8338999]
[1763623500602,1.66,142.96,142.95,7.71545295]
[1763623500807,1.66,142.96,142.95,11.8338999]
[1763623501178,10.47882769,143.02,142.95,29.32253228]
[1763623501376,1.66,143.01,142.99,4.11844695]
[1763623501998,1.66,143.01,142.98,4.11844695]
[1763623502199,8.652518,143.01,142.98,4.83844695]
[1763623502405,8.652518,143.01,142.99,0.72]
[1763623502576,1.66,143.01,142.99,0.72]
[1763623502778,1.66,143.01,142.99,4.83844695]
[1763623503312,1.66,143.01,143.0,0.72]
[1763623503900,1.66,143.01,143.0,4.83844695]
[1763623504092,6.99117781,143.04,143.0,11.83145394]
[1763623504398,1.66,143.03,143.01,4.83844695]
[1763623504804,1.66,143.03,143.02,0.72]
[1763623507909,4.80844695,143.08,143.02,4.83844695]
[1763623508219,1.66,143.07,143.04,4.11844695]
[1763623508587,1.66,143.07,143.05,0.72]
[1763623509088,2.35,143.07,143.03,4.83844695]
[1763623509285,9.34004163,143.07,143.04,0.72]
[1763623509505,8.65004163,143.07,143.04,0.72]
[1763623510514,13.45848858,143.07,143.04,0.72]
[1763623511206,9.34004163,143.07,143.04,0.72]
[1763623511910,8.65004163,143.07,143.04,0.72]
[1763623513011,8.65004163,143.07,143.04,4.83844695]
[1763623513392,8.65004163,143.07,143.04,4.11844695]
[1763623513624,8.65004163,143.07,143.05,0.72]
[1763623513625,1.66,143.07,143.05,0.72]
[1763623513792,8.64960694,143.07,143.05,0.72]
[1763623514418,8.64960694,143.07,143.03,4.83844695]
[1763623514419,9.33960694,143.07,143.03,4.83844695]
[1763623514589,9.33960694,143.07,143.04,0.72]
[1763623515487,9.33960694,143.07,143.04,4.83844695]
[1763623517301,8.64960694,143.07,143.05,0.72]
[1763623518209,1.66,143.07,143.05,4.83844695]
[1763623518524,1.66,143.07,143.06,0.72]
[1763623519101,1.66,143.07,143.06,4.83844695]
[1763623519412,1.66,143.07,143.06,11.82852104]
[1763623520616,1.66,143.07,143.06,0.72]
[1763623521524,13.47805496,143.07,143.02,0.7]
[1763623521703,13.47805496,143.07,143.03,0.7]
[1763623521704,0.71,143.06,143.03,0.7]
[1763623522021,8.64960801,143.07,143.03,0.7]
[1763623522022,13.47805496,143.07,143.03,0.7]
[1763623522523,13.47805496,143.07,143.03,4.81844695]
[1763623522922,13.47805496,143.07,143.04,0.7]
[1763623523120,8.64960801,143.07,143.04,4.81844695]
[1763623523322,1.66,143.07,143.04,11.80945815]
[1763623523641,1.66,143.07,143.05,4.81844695]
[1763623524197,1.66,143.07,143.06,0.7]
[1763623524419,9.35958869,143.07,143.04,4.11844695]
[1763623524598,9.35958869,143.07,143.04,4.81844695]
[1763623525708,9.35958869,143.07,143.04,0.7]
[1763623525920,9.35958869,143.07,143.04,4.81844695]
[1763623526233,9.35958869,143.07,143.04,0.7]
[1763623526416,9.35958869,143.07,143.03,4.11844695]
[1763623526612,4.82844695,143.06,143.03,0.7]
[1763623526819,30.95199943,143.07,143.03,0.7]
[1763623527833,9.35963389,143.07,143.03,11.80998226]
[1763623528330,9.35963389,143.07,143.04,0.67]
[1763623529301,8.64963389,143.07,143.04,4.78844695]
[1763623529720,8.64963389,143.07,143.05,0.67]
[1763623530030,1.66,143.07,143.05,4.78844695]
[1763623530432,1.66,143.07,143.06,0.67]
[1763623531925,1.66,143.07,143.06,11.77852104]
[1763623533441,1.66,143.07,143.06,0.67]
[1763623533607,1.66,143.07,143.05,4.78844695]
[1763623533930,1.66,143.07,143.06,0.67]
[1763623536022,1.66,143.07,143.05,4.11844695]
[1763623536336,1.66,143.07,143.06,4.11844695]
[1763623537408,1.66,143.07,143.06,11.10852104]
[1763623538118,1.66,143.07,143.06,11.77852104]
[1763623538521,1.66,143.07,143.06,0.67]
[1763623538726,1.66,143.07,143.05,11.10879429]
[1763623538928,1.66,143.07,143.05,11.77879429]
[1763623540107,1.66,143.07,143.04,11.77927711]
[1763623540312,2.36,143.07,143.04,11.77927711]
[1763623540713,1.66,143.07,143.04,11.77927711]
[1763623543649,1.66,143.07,143.05,0.67]
[1763623545125,1.66,143.07,143.04,11.10927711]
[1763623545320,1.66,143.07,143.04,11.77927711]
[1763623545520,1.66,143.07,143.05,4.11844695]
[1763623545819,1.66,143.07,143.04,7.66083016]
[1763623546029,1.66,143.07,143.05,4.11844695]
[1763623546737,1.66,143.07,143.05,4.78844695]
[1763623546937,1.66,143.07,143.05,11.77893462]
[1763623547547,1.66,143.07,143.05,11.10893462]
[1763623549138,1.66,143.07,143.06,4.78844695]
[1763623549545,7.68814239,143.1,143.06,4.78844695]
[1763623549738,7.68814239,143.1,143.07,5.23367665]
[1763623549739,1.66,143.09,143.07,5.23367665]
[1763623549941,1.66,143.09,143.08,5.23367665]
[1763623550821,1.66,143.09,143.08,5.90367665]
[1763623551026,1.66,143.09,143.08,12.89277365]
[1763623551629,1.66,143.09,143.08,12.22277365]
[1763623552026,1.66,143.09,143.08,5.23367665]
[1763623555655,1.66,143.09,143.08,12.22277365]
[1763623557729,1.66,143.09,143.08,12.22272454]
[1763623558246,1.66,143.09,143.08,14.85259769]
[1763623558828,1.66,143.09,143.08,7.86350069]
[1763623560342,1.66,143.09,143.08,15.52259769]
[1763623561335,1.66,143.09,143.08,5.23362754]
[1763623561536,1.66,143.09,143.08,8.53350069]
[1763623561736,1.66,143.09,143.08,3.29987315]
[1763623562562,1.66,143.09,143.07,5.88826438]
[1763623562755,1.66,143.09,143.07,2.62987315]
[1763623562959,1.66,143.09,143.07,3.29987315]
[1763623564673,2.82987315,143.12,143.06,30.9992255]
[1763623564674,0.2,143.12,143.08,3.29987315]
[1763623564968,0.2,143.12,143.11,2.62987315]
[1763623565340,0.2,143.12,143.11,3.29987315]
[1763623566842,0.2,143.12,143.11,10.28750504]
[1763623568802,0.91,143.12,143.09,24.00922438]
[1763623568941,0.91,143.12,143.08,5.88826438]
[1763623569276,0.71,143.11,143.09,2.62987315]
[1763623570054,0.71,143.11,143.07,5.88826438]
[1763623570258,0.71,143.11,143.08,2.62987315]
[1763623570669,0.71,143.11,143.07,13.54768627]
[1763623570895,0.71,143.11,143.08,2.62987315]
[1763623571269,0.71,143.11,143.08,9.6188306]
[1763623571949,0.71,143.11,143.09,2.62987315]
[1763623573873,0.91,143.12,143.1,2.62987315]
[1763623574248,1.86,143.12,143.11,2.62987315]
[1763623577172,0.2,143.12,143.11,10.28750504]
[1763623578054,0.2,143.12,143.11,9.61750504]
[1763623578952,0.91,143.12,143.11,9.61750504]
[1763623579363,0.2,143.12,143.11,9.61750504]
[1763623580985,0.2,143.12,143.11,10.32750504]
[1763623583263,0.2,143.12,143.11,9.61750504]
[1763623583582,0.87,143.12,143.11,9.61750504]
[1763623583977,0.2,143.12,143.11,9.61750504]
[1763623589466,0.86,143.12,143.11,2.62987315]
[1763623589865,0.86,143.12,143.11,9.61750504]
[1763623592299,0.2,143.12,143.11,9.61750504]
[1763623592597,0.2,143.12,143.11,10.31750504]
[1763623594387,0.2,143.12,143.11,16.20576942]
[1763623594590,0.2,143.12,143.11,15.50576942]
[1763623594986,0.2,143.12,143.11,16.20576942]
[1763623595290,0.2,143.12,143.11,15.50576942]
[1763623595589,0.2,143.12,143.11,9.61750504]
[1763623596500,0.86,143.12,143.11,6.98763189]
[1763623596704,0.86,143.12,143.11,9.61750504]
[1763623598105,0.86,143.12,143.1,2.62987315]
[1763623598274,0.66,143.11,143.1,2.62987315]
[1763623599110,0.66,143.11,143.09,12.87669711]
[1763623599307,0.66,143.11,143.1,2.62987315]
[1763623599599,0.86,143.12,143.1,2.62987315]
[1763623599808,0.86,143.12,143.11,2.62987315]
[1763623603107,0.86,143.12,143.1,9.61797972]
[1763623604207,0.86,143.12,143.1,6.98810657]
[1763623604409,0.86,143.12,143.1,9.61797972]
[1763623604594,0.66,143.11,143.09,5.88826438]
[1763623604793,3.28987315,143.11,143.07,2.62987315]
[1763623605115,3.28987315,143.11,143.06,8.51813753]
[1763623605414,0.66,143.1,143.06,5.88826438]
[1763623605583,0.66,143.1,143.06,2.62987315]
[1763623605783,7.64829924,143.1,143.06,9.61962146]
[1763623606196,0.66,143.09,143.06,9.61962146]
[1763623607503,0.66,143.09,143.06,6.98974831]
[1763623607711,0.66,143.09,143.07,2.62987315]
[1763623608727,2.32,143.09,143.07,2.62987315]
[1763623609084,0.66,143.08,143.07,2.62987315]
[1763623610382,0.16,143.08,143.07,2.62987315]
[1763623610582,1.66,143.09,143.07,2.62987315]
[1763623610583,1.66,143.09,143.07,10.32945688]
[1763623610819,1.66,143.09,143.08,2.62987315]
[1763623611391,6.98775144,143.11,143.08,2.62987315]
[1763623611594,1.66,143.1,143.08,2.62987315]
[1763623612015,8.64823272,143.1,143.08,2.62987315]
[1763623612386,0.66,143.09,143.08,2.62987315]
[1763623612593,0.66,143.09,143.07,2.62987315]
[1763623612912,0.66,143.09,143.07,4.10888628]
[1763623613727,1.66,143.1,143.08,4.81888628]
[1763623613919,1.66,143.1,143.09,4.10888628]
[1763623614219,1.66,143.1,143.09,4.81888628]
[1763623614697,1.66,143.1,143.09,4.68177256]
[1763623615498,1.66,143.1,143.09,4.10888628]
[1763623617993,1.66,143.1,143.09,11.09749484]
[1763623618300,1.66,143.1,143.09,11.80749484]
[1763623618501,1.86,143.12,143.09,11.80749484]
[1763623618712,2.52,143.12,143.1,4.10888628]
[1763623620304,2.52,143.12,143.1,11.09694541]
[1763623620509,2.52,143.12,143.11,4.10888628]
[1763623620719,1.86,143.12,143.11,4.10888628]
[1763623621114,0.2,143.12,143.11,4.81888628]
[1763623621829,0.2,143.12,143.11,11.80651817]
[1763623622227,0.2,143.12,143.11,11.09651817]
[1763623623128,0.2,143.12,143.11,11.80651817]
[1763623623335,0.2,143.18,143.14,18.12096]
[1763623623514,0.2,143.18,143.17,4.10888628]
[1763623624326,0.2,143.18,143.17,4.81888628]
[1763623624520,0.2,143.18,143.17,24.59984628]
[1763623624716,0.2,143.18,143.17,32.40572457]
[1763623625111,0.2,143.18,143.17,39.39042806]
[1763623625318,0.2,143.18,143.17,31.58454977]
[1763623627123,0.2,143.18,143.17,37.44680569]
[1763623627329,0.2,143.18,143.17,27.47566349]
[1763623627512,0.2,143.18,143.17,29.92454977]
[1763623632320,0.2,143.18,143.17,11.80358977]
[1763623632641,0.2,143.18,143.17,22.93984628]
[1763623632841,0.2,143.18,143.17,29.92454977]
[1763623634141,0.86,143.18,143.15,2.7957365]
[1763623634343,0.66,143.17,143.16,4.10888628]
[1763623635426,0.2,143.18,143.16,4.10888628]
[1763623635625,0.86,143.18,143.16,4.10888628]
[1763623635831,0.86,143.18,143.15,7.69556538]
[1763623636035,0.86,143.18,143.17,4.10888628]
[1763623636844,0.86,143.18,143.16,4.10888628]
[1763623638037,7.84427295,143.18,143.14,25.81706552]
[1763623638240,0.86,143.18,143.17,4.10888628]
[1763623639754,7.84421567,143.18,143.13,7.18403626]
[1763623640039,2.32,143.17,143.13,4.10888628]
[1763623640243,0.7,143.16,143.13,22.22984628]
[1763623640638,6.98567935,143.15,143.13,4.10888628]
[1763623640942,7.68527403,143.16,143.13,4.10888628]
[1763623641439,0.7,143.15,143.13,4.10888628]
[1763623642943,7.68601555,143.15,143.12,4.10888628]
[1763623643131,11.79490183,143.15,143.11,4.10888628]
[1763623643442,0.7,143.14,143.11,4.10888628]
[1763623644644,2.36,143.14,143.1,4.10888628]
[1763623644826,6.98665548,143.13,143.1,4.10888628]
[1763623645029,25.1532942,143.13,143.1,4.10888628]
[1763623645228,0.7,143.12,143.09,4.10888628]
[1763623646944,7.68754928,143.12,143.09,4.10888628]
[1763623647744,0.72,143.11,143.09,4.10888628]
[1763623647945,7.70789172,143.11,143.09,4.10888628]
[1763623650030,0.72,143.11,143.09,4.10888628]
[1763623650230,6.98782213,143.11,143.09,4.10888628]
[1763623650439,7.70782213,143.11,143.09,4.10888628]
[1763623650654,0.72,143.11,143.09,4.10888628]
[1763623650846,7.7077654,143.11,143.09,4.10888628]
[1763623651757,0.72,143.12,143.1,4.10888628]
[1763623652441,7.70724713,143.12,143.1,4.10888628]
[1763623652637,1.66,143.13,143.11,4.78888628]
[1763623652843,1.66,143.14,143.12,4.10888628]
[1763623653041,1.66,143.14,143.13,4.10888628]
[1763623653459,2.38,143.14,143.12,4.10888628]
[1763623654665,9.36641908,143.14,143.12,4.10888628]
[1763623656284,1.66,143.14,143.12,4.10888628]
[1763623656439,1.66,143.14,143.13,4.10888628]
[1763623659468,2.38,143.14,143.13,4.10888628]
[1763623660763,1.66,143.14,143.13,4.10888628]
[1763623663071,7.70568107,143.15,143.13,4.10888628]
[1763623663275,7.70568107,143.15,143.14,4.10888628]
[1763623663978,0.2,143.18,143.15,24.44987774]
[1763623664155,0.2,143.18,143.17,27.90978769]
[1763623664353,0.2,143.18,143.17,33.67867397]
[1763623664571,0.2,143.18,143.17,34.35867397]
[1763623665167,0.2,143.18,143.17,41.34337746]
[1763623665566,0.2,143.18,143.17,44.13852787]
[1763623666956,0.2,143.18,143.17,50.00078379]
[1763623668568,0.2,143.18,143.17,44.13852787]
[1763623668878,0.2,143.23,143.21,109.78882769]
[1763623669053,0.2,143.25,143.23,27.90978769]
[1763623669466,0.2,143.25,143.23,28.58978769]
[1763623669675,0.2,143.25,143.23,31.38376666]
[1763623670176,0.2,143.25,143.23,38.36554422]
[1763623670752,0.2,143.26,143.25,27.90978769]
[1763623670970,0.2,143.29,143.25,33.67867397]
[1763623671282,0.2,143.29,143.26,8.92777256]
[1763623671484,0.2,143.29,143.28,8.21777256]
[1763623671661,0.2,143.29,143.28,8.92777256]
[1763623671867,0.2,143.29,143.28,8.21777256]
[1763623672180,0.2,143.29,143.28,15.19711371]
[1763623672882,0.2,143.29,143.28,15.90711371]
[1763623673659,0.2,143.29,143.28,17.56711371]
[1763623674468,0.2,143.29,143.28,20.36031227]
[1763623674861,0.2,143.29,143.28,25.24511181]
[1763623675062,0.2,143.29,143.28,43.36607181]
[1763623675863,0.2,143.31,143.29,13.8125721]
[1763623676077,0.2,143.31,143.3,4.28051442]
[1763623676271,0.2,143.31,143.3,4.99051442]
[1763623677082,0.2,143.31,143.3,11.96888148]
[1763623679283,0.2,143.31,143.3,14.051885]
[1763623680565,0.2,143.31,143.3,14.761885]
[1763623682062,0.2,143.33,143.32,18.12096]
[1763623682261,0.2,143.33,143.32,22.40147442]
[1763623682466,0.2,143.33,143.32,23.11147442]
[1763623683059,0.2,143.35,143.32,57.32117846]
[1763623683274,0.2,143.35,143.34,2.62051442]
[1763623683567,0.2,143.35,143.34,4.28051442]
[1763623683812,0.2,143.35,143.34,4.99051442]
[1763623683982,0.2,143.35,143.34,31.74489615]
[1763623684295,0.2,143.35,143.34,41.53372384]
[1763623684796,0.2,143.35,143.34,52.01578152]
[1763623684977,0.2,143.35,143.34,58.99220122]
[1763623685662,0.2,143.35,143.34,40.87124122]
[1763623685862,0.2,143.37,143.36,27.90978769]
[1763623686090,0.2,143.37,143.36,42.67235979]
[1763623686299,0.2,143.37,143.36,43.38235979]
[1763623687189,0.2,143.37,143.36,50.35780621]
[1763623687390,0.2,143.37,143.36,27.71692084]
[1763623689904,0.2,143.37,143.36,34.68977095]
[1763623692683,0.2,143.37,143.36,45.17182863]
[1763623692888,0.2,143.37,143.36,45.88182863]
[1763623693406,0.2,143.37,143.36,45.17182863]
[1763623695809,0.2,143.37,143.36,34.68977095]
[1763623700202,0.91,143.37,143.34,62.1]
[1763623700390,0.2,143.37,143.35,2.62051442]
[1763623700590,0.2,143.37,143.34,2.62051442]
[1763623700591,7.17502041,143.37,143.34,2.62051442]
[1763623700812,0.71,143.36,143.34,2.62051442]
[1763623702643,0.71,143.36,143.33,2.62051442]
[1763623702801,2.62051442,143.34,143.28,6.97894982]
[1763623703008,2.62051442,143.34,143.26,9.78882769]
[1763623703009,2.62051442,143.34,143.3,2.62051442]
[1763623703317,0.71,143.33,143.31,2.62051442]
[1763623704037,0.71,143.33,143.32,2.62051442]
[1763623705206,0.71,143.33,143.3,2.62051442]
[1763623705603,7.68696507,143.33,143.3,2.62051442]
[1763623705912,19.09927336,143.36,143.31,2.62051442]
[1763623705913,0.71,143.32,143.31,2.62051442]
[1763623709410,7.68759486,143.32,143.27,24.4165347]
[1763623709611,10.30810928,143.32,143.28,2.62051442]
[1763623709935,0.65,143.31,143.25,13.95684238]
[1763623710133,4.93051442,143.31,143.27,2.62051442]
[1763623710326,2.31,143.31,143.27,2.62051442]
[1763623710527,0.65,143.3,143.27,2.62051442]
[1763623711522,0.65,143.3,143.28,2.62051442]
[1763623711939,7.62847102,143.3,143.27,2.62051442]
[1763623712339,0.65,143.29,143.28,2.62051442]
[1763623713451,1.66,143.31,143.28,9.59984903]
[1763623713619,0.65,143.3,143.28,6.97933461]
[1763623713814,0.65,143.3,143.29,2.62051442]
[1763623716227,0.65,143.3,143.27,6.97972268]
[1763623716421,0.65,143.3,143.29,2.62051442]
[1763623716940,59.96612002,143.3,143.26,5.82310506]
[1763623717153,59.96612002,143.3,143.17,22.62275658]
[1763623717154,1.99999999,143.23,143.11,1e-08]
[1763623717353,2.62051442,143.15,143.1,2.62051442]
[1763623717514,1.66,143.15,143.1,20.74147442]
[1763623717713,4.84051442,143.15,143.1,21.44147442]
[1763623717926,2.22,143.15,143.11,2.62051442]
[1763623718339,0.56,143.17,143.13,2.62051442]
[1763623718645,2.22,143.17,143.13,2.62051442]
[1763623718854,2.22,143.17,143.13,7.03817814]
[1763623719244,9.20470469,143.17,143.13,7.73817814]
[1763623719618,16.24288283,143.17,143.13,0.7]
[1763623719812,16.24288283,143.17,143.12,7.23817814]
[1763623720124,0.56,143.16,143.12,0.9]
[1763623720442,16.24288283,143.17,143.12,0.9]
[1763623720649,0.56,143.16,143.12,0.9]
[1763623721717,7.54521641,143.16,143.12,0.9]
[1763623722113,0.56,143.15,143.12,0.2]
[1763623722420,7.03817814,143.14,143.12,0.2]
[1763623722933,7.59817814,143.14,143.12,0.2]
[1763623723347,7.59817814,143.14,143.12,0.9]
[1763623723348,7.03817814,143.14,143.12,0.9]
[1763623723522,7.03817814,143.15,143.12,0.9]
[1763623725551,7.03817814,143.14,143.12,0.9]
[1763623725729,7.03817814,143.14,143.12,0.2]
[1763623726246,7.03817814,143.13,143.12,0.2]
[1763623726448,7.03817814,143.14,143.12,0.2]
[1763623726751,7.59817814,143.15,143.12,0.2]
[1763623726939,14.02407187,143.15,143.12,0.2]
[1763623727249,14.58407187,143.15,143.12,0.2]
[1763623728746,14.02407187,143.15,143.12,0.2]
[1763623729069,7.54589373,143.15,143.12,0.2]
[1763623729445,7.03817814,143.16,143.12,0.9]
[1763623729635,7.59817814,143.16,143.12,0.9]
[1763623729836,7.59817814,143.16,143.12,0.2]
[1763623730854,14.58367753,143.16,143.12,0.2]
[1763623731057,14.58367753,143.16,143.12,0.92]
[1763623732440,7.03817814,143.16,143.13,0.72]
[1763623732650,7.03817814,143.16,143.12,7.18702045]
[1763623732855,7.59817814,143.16,143.12,7.90702045]
[1763623734284,7.59817814,143.16,143.13,0.72]
[1763623734285,1.66,143.16,143.13,0.72]
[1763623734455,2.22,143.16,143.12,7.90702045]
[1763623734857,13.11422343,143.16,143.12,7.90702045]
[1763623735273,12.55422343,143.16,143.13,0.72]
[1763623735667,12.55422343,143.16,143.13,7.70655745]
[1763623735869,1.66,143.16,143.13,7.70655745]
[1763623738265,1.99999999,143.24,143.13,7.70655745]
[1763623738266,10.89422343,143.21,143.15,29.01518343]
[1763623738461,1.66,143.2,143.15,18.12096]
[1763623738661,1.66,143.2,143.16,0.72]
[1763623739159,13.11422343,143.2,143.16,0.72]
[1763623739371,13.11422343,143.2,143.16,7.70472334]
[1763623740172,1.66,143.2,143.17,0.72]
[1763623740967,1.66,143.2,143.17,7.70455068]
[1763623742466,13.30736397,143.2,143.15,20.50096]
[1763623742771,13.30736397,143.2,143.16,25.82591923]
[1763623743990,4.10411115,143.18,143.14,6.98585624]
[1763623744193,4.10411115,143.18,143.14,25.10681624]
[1763623744391,1.66,143.17,143.14,18.84096]
[1763623744695,4.10411115,143.15,143.12,0.2]
[1763623744873,4.10411115,143.15,143.12,7.9071328]
[1763623746588,4.66411115,143.16,143.12,7.9071328]
[1763623746772,4.10411115,143.16,143.13,0.72]
[1763623748012,4.66411115,143.16,143.12,7.9071328]
[1763623748197,11.64940101,143.16,143.12,7.9071328]
[1763623748781,4.10411115,143.15,143.12,7.9071328]
[1763623749012,4.66411115,143.15,143.12,0.2]
[1763623749172,4.10411115,143.13,143.12,0.2]
[1763623749605,6.32411115,143.14,143.12,0.2]
[1763623750273,5.76411115,143.14,143.12,0.2]
[1763623753591,12.75028205,143.14,143.12,0.2]
[1763623753798,13.31028205,143.14,143.12,0.2]
[1763623754181,5.76411115,143.14,143.12,0.2]
[1763623754579,1.66,143.14,143.12,0.2]
[1763623754797,8.6462643,143.14,143.12,0.2]
[1763623755195,9.2062643,143.14,143.12,0.2]
[1763623755403,13.31037545,143.14,143.12,0.2]
[1763623756213,12.75037545,143.14,143.12,0.2]
[1763623756726,13.31037545,143.14,143.12,0.2]
[1763623757318,4.10411115,143.13,143.12,0.2]
[1763623757620,4.66411115,143.13,143.12,0.2]
[1763623758802,0.56,143.13,143.12,0.2]
[1763623759002,4.66411115,143.13,143.12,0.2]
[1763623760023,11.65076663,143.13,143.12,0.2]
[1763623767850,4.10411115,143.13,143.12,0.2]
[1763623774137,11.09076663,143.13,143.12,0.2]
[1763623775553,11.65076663,143.13,143.12,0.2]
[1763623782530,11.09076663,143.13,143.12,0.2]
[1763623783165,5.76411115,143.13,143.12,0.9]
[1763623785757,12.75076663,143.13,143.12,0.9]
[1763623785930,5.76411115,143.13,143.12,0.9]
[1763623786125,1.66,143.13,143.12,7.88714365]
[1763623790146,4.10411115,143.16,143.12,7.88714365]